fUST/lending_fUST_20250522
["ID","MTS","AMOUNT","RATE_DAILY","PERIOD"]
[361950585,1747906241097,-430.0,0.00022465,2]
[361950586,1747906241106,-430.0,0.00022465,2]
[361950587,1747906241115,-430.0,0.00022465,2]
[361950588,1747906241125,-430.0,0.00022465,2]
[361950589,1747906241134,-430.0,0.00022465,2]
[361950590,1747906241144,-430.0,0.00022465,2]
[361950591,1747906241153,-430.0,0.00022465,2]
[361950592,1747906241163,-430.0,0.00022465,2]
[361950593,1747906241172,-430.0,0.00022465,2]
[361950594,1747906241182,-430.0,0.00022465,2]
[361950595,1747906241191,-430.0,0.00022465,2]
[361950596,1747906241201,-738.51,0.00022465,2]
[361950597,1747906241211,-458.51295153,0.00022465,2]
[361950598,1747906241221,-630.8,0.00022465,2]
[361950599,1747906241230,-1259.03,0.00022465,2]
[361950600,1747906241240,-430.0,0.00022465,2]
[361950601,1747906241249,-466.30636841,0.00022465,2]
[361950602,1747906241262,-771.88,0.00022465,2]
[361950603,1747906241272,-430.0,0.00022465,2]
[361950604,1747906241282,-430.0,0.00022465,2]
[361950605,1747906241291,-430.0,0.00022465,2]
[361950606,1747906241300,-430.0,0.00022465,2]
[361950607,1747906241310,-281.85841287,0.00022465,2]
[361950608,1747906241319,-430.0,0.00022465,2]
[361950609,1747906241329,-430.0,0.00022465,2]
[361950610,1747906241338,-2529.3,0.00022465,2]
[361950611,1747906241348,-430.0,0.00022465,2]
[361950612,1747906241357,-430.0,0.00022465,2]
[361950613,1747906241366,-430.0,0.00022465,2]
[361950614,1747906241376,-439.34,0.00022465,2]
[361950615,1747906241385,-430.0,0.00022465,2]
[361950616,1747906241395,-430.0,0.00022465,2]
[361950617,1747906241404,-430.0,0.00022465,2]
[361950618,1747906241414,-430.0,0.00022465,2]
[361950619,1747906241424,-430.0,0.00022465,2]
[361950620,1747906241434,-430.0,0.00022465,2]
[361950621,1747906241443,-430.0,0.00022465,2]
[361950622,1747906241453,-430.0,0.00022465,2]
[361950623,1747906241463,-430.0,0.00022465,2]
[361950624,1747906241472,-430.0,0.00022465,2]
[361950625,1747906241481,-430.0,0.00022465,2]
[361950626,1747906241490,-480.92,0.00022465,2]
[361950627,1747906241499,-430.0,0.00022465,2]
[361950628,1747906241509,-430.0,0.00022465,2]
[361950629,1747906241519,-430.0,0.00022465,2]
[361950630,1747906241533,-430.0,0.00022465,2]
[361950631,1747906241547,-430.0,0.00022465,2]
[361950632,1747906241557,-430.0,0.00022465,2]
[361950633,1747906241566,-430.0,0.00022465,2]
[361950634,1747906241576,-430.0,0.00022465,2]
[361950635,1747906241586,-430.0,0.00022465,2]
[361950636,1747906241596,-914.3,0.00022465,2]
[361950637,1747906241606,-430.0,0.00022465,2]
[361950638,1747906241616,-430.0,0.00022465,2]
[361950639,1747906241626,-430.0,0.00022465,2]
[361950640,1747906241635,-430.0,0.00022465,2]
[361950641,1747906241644,-430.0,0.00022465,2]
[361950642,1747906241654,-430.0,0.00022465,2]
[361950643,1747906241666,-430.0,0.00022465,2]
[361950644,1747906241675,-1038.54,0.00022465,2]
[361950645,1747906241684,-430.0,0.00022465,2]
[361950646,1747906241694,-430.0,0.00022465,2]
[361950647,1747906241703,-430.0,0.00022465,2]
[361950648,1747906241713,-430.0,0.00022465,2]
[361950649,1747906241722,-430.0,0.00022465,2]
[361950650,1747906241732,-430.0,0.00022465,2]
[361950651,1747906241741,-430.0,0.00022465,2]
[361950652,1747906241751,-1675.94,0.00022465,2]
[361950653,1747906241760,-430.0,0.00022465,2]
[361950654,1747906241770,-430.0,0.00022465,2]
[361950655,1747906241780,-430.0,0.00022465,2]
[361950656,1747906241789,-430.0,0.00022465,2]
[361950657,1747906241799,-430.0,0.00022465,2]
[361950658,1747906241808,-430.0,0.00022465,2]
[361950659,1747906241818,-430.0,0.00022465,2]
[361950660,1747906241828,-430.0,0.00022465,2]
[361950661,1747906241838,-430.0,0.00022465,2]
[361950662,1747906241847,-430.0,0.00022465,2]
[361950663,1747906241857,-430.0,0.00022465,2]
[361950664,1747906241867,-1204.76,0.00022465,2]
[361950665,1747906241876,-430.0,0.00022465,2]
[361950666,1747906241886,-430.0,0.00022465,2]
[361950667,1747906241895,-430.0,0.00022465,2]
[361950668,1747906241905,-430.0,0.00022465,2]
[361950669,1747906241915,-430.0,0.00022465,2]
[361950670,1747906241924,-430.0,0.00022465,2]
[361950671,1747906241934,-430.0,0.00022465,2]
[361950673,1747906241943,-430.0,0.00022465,2]
[361950674,1747906241952,-430.0,0.00022465,2]
[361950675,1747906241962,-611.79,0.00022465,2]
[361950676,1747906241971,-430.0,0.00022465,2]
[361950677,1747906241980,-213.2357418,0.00022465,2]
[361950678,1747906241990,-430.0,0.00022465,2]
[361950679,1747906241999,-430.0,0.00022465,2]
[361950680,1747906242008,-430.0,0.00022465,2]
[361950681,1747906242019,-430.0,0.00022465,2]
[361950682,1747906242028,-430.0,0.00022465,2]
[361950683,1747906242038,-430.0,0.00022465,2]
[361950684,1747906242048,-430.0,0.00022465,2]
[361950685,1747906242057,-430.0,0.00022465,2]
[361950686,1747906242067,-430.0,0.00022465,2]
[361950687,1747906242076,-404.69145368,0.00022465,2]
[361950688,1747906242085,-430.0,0.00022465,2]
[361950689,1747906242095,-430.0,0.00022465,2]
[361950690,1747906242105,-430.0,0.00022465,2]
[361950691,1747906242114,-430.0,0.00022465,2]
[361950692,1747906242123,-430.0,0.00022465,2]
[361950693,1747906242133,-430.0,0.00022465,2]
[361950694,1747906242142,-430.0,0.00022465,2]
[361950695,1747906242151,-430.0,0.00022465,2]
[361950696,1747906242161,-430.0,0.00022465,2]
[361950697,1747906242170,-430.0,0.00022465,2]
[361950698,1747906242181,-339.47442824,0.00022465,2]
[361950699,1747906242190,-151.0,0.00022465,7]
[361950701,1747906242200,-430.0,0.00022465,2]
[361950703,1747906242209,-430.0,0.00022465,2]
[361950704,1747906242219,-430.0,0.00022465,2]
[361950705,1747906242228,-430.03,0.00022465,2]
[361950706,1747906242237,-430.0,0.00022465,2]
[361950707,1747906242246,-151.0,0.00022465,7]
[361950708,1747906242256,-430.0,0.00022465,2]
[361950709,1747906242266,-578.77,0.00022465,2]
[361950710,1747906242275,-430.0,0.00022465,2]
[361950711,1747906242285,-430.0,0.00022465,2]
[361950712,1747906242294,-430.0,0.00022465,2]
[361950713,1747906242303,-806.75,0.00022465,2]
[361950714,1747906242312,-430.0,0.00022465,2]
[361950715,1747906242321,-430.0,0.00022465,2]
[361950716,1747906242331,-430.0,0.00022465,2]
[361950717,1747906242340,-430.0,0.00022465,2]
[361950718,1747906242350,-430.0,0.00022465,2]
[361950719,1747906242359,-296.32945338,0.00022468,2]
[361950720,1747906242368,-1000.0,0.00022521,2]
[361950722,1747906242379,-322.03608124,0.00022528,2]
[361950724,1747906242388,-367.12208631,0.00022528,2]
[361950726,1747906242398,-21372.24382361,0.000226,7]
[361950728,1747906242407,-500.0,0.00022639,2]
[361950730,1747906242417,-1687.66469012,0.00022639,2]
[361950732,1747906242426,-151.0,0.00022729,2]
[361950734,1747906242435,-207.4,0.00022729,2]
[361950736,1747906242445,-151.0,0.00022739,7]
[361950737,1747906242454,-151.0,0.00022739,7]
[361950738,1747906242463,-430.0,0.00022739,2]
[361950739,1747906242473,-430.0,0.00022739,2]
[361950740,1747906242482,-430.0,0.00022739,2]
[361950741,1747906242492,-430.0,0.00022739,2]
[361950742,1747906242501,-430.0,0.00022739,2]
[361950744,1747906242510,-430.0,0.00022739,2]
[361950745,1747906242521,-430.0,0.00022739,2]
[361950748,1747906242534,-430.26799731,0.00022739,2]
[361950750,1747906242543,-430.0,0.00022739,2]
[361950751,1747906242552,-430.0,0.00022739,2]
[361950752,1747906242561,-430.0,0.00022739,2]
[361950753,1747906242571,-441.75737556,0.00022739,2]
[361950754,1747906242580,-430.0,0.00022739,2]
[361950755,1747906242590,-737.37,0.00022739,2]
[361950756,1747906242599,-430.0,0.00022739,2]
[361950757,1747906242610,-306.00428834,0.00022739,2]
[361950758,1747906242619,-430.0,0.00022739,2]
[361950759,1747906242629,-430.0,0.00022739,2]
[361950760,1747906242638,-430.0,0.00022739,2]
[361950761,1747906242648,-430.0,0.00022739,2]
[361950762,1747906242658,-430.0,0.00022739,2]
[361950763,1747906242667,-210.54078875,0.00022739,2]
[361950764,1747906242677,-430.0,0.00022739,2]
[361950765,1747906242687,-430.0,0.00022739,2]
[361950767,1747906242697,-430.0,0.00022739,2]
[361950768,1747906242706,-542.1,0.00022739,2]
[361950770,1747906242715,-430.0,0.00022739,2]
[361950771,1747906242725,-430.0,0.00022739,2]
[361950772,1747906242734,-430.0,0.00022739,2]
[361950773,1747906242743,-430.0,0.00022739,2]
[361950774,1747906242753,-430.0,0.00022739,2]
[361950776,1747906242763,-430.0,0.00022739,2]
[361950778,1747906242773,-430.0,0.00022739,2]
[361950780,1747906242783,-430.0,0.00022739,2]
[361950782,1747906242793,-430.0,0.00022739,2]
[361950784,1747906242803,-430.0,0.00022739,2]
[361950786,1747906242812,-430.0,0.00022739,2]
[361950788,1747906242821,-430.0,0.00022739,2]
[361950790,1747906242831,-430.0,0.00022739,2]
[361950792,1747906242840,-430.0,0.00022739,2]
[361950794,1747906242850,-430.0,0.00022739,2]
[361950796,1747906242860,-430.0,0.00022739,2]
[361950811,1747906242991,-430.0,0.00022739,2]
[361950813,1747906243001,-430.0,0.00022739,2]
[361950815,1747906243011,-430.0,0.00022739,2]
[361950817,1747906243021,-430.0,0.00022739,2]
[361950819,1747906243030,-430.0,0.00022739,2]
[361950820,1747906243039,-430.0,0.00022739,2]
[361950821,1747906243048,-430.0,0.00022739,2]
[361950822,1747906243058,-430.0,0.00022739,2]
[361950823,1747906243067,-430.0,0.00022739,2]
[361950824,1747906243077,-430.0,0.00022739,2]
[361950825,1747906243086,-450.0,0.00022739,2]
[361950826,1747906243095,-430.0,0.00022739,2]
[361950827,1747906243105,-430.0,0.00022739,2]
[361950828,1747906243114,-489.75419504,0.00022739,2]
[361950829,1747906243124,-292.80830979,0.00022739,2]
[361950830,1747906243133,-430.0,0.00022739,2]
[361950831,1747906243143,-430.0,0.00022739,2]
[361950832,1747906243152,-430.0,0.00022739,2]
[361950833,1747906243162,-441.59,0.00022739,2]
[361950834,1747906243171,-430.0,0.00022739,2]
[361950835,1747906243180,-430.0,0.00022739,2]
[361950836,1747906243189,-430.0,0.00022739,2]
[361950837,1747906243198,-252.29704008,0.00022739,2]
[361950838,1747906243207,-430.0,0.00022739,2]
[361950839,1747906243217,-430.0,0.00022739,2]
[361950840,1747906243226,-350.0,0.00022739,2]
[361950841,1747906243235,-430.0,0.00022739,2]
[361950842,1747906243244,-430.0,0.00022739,2]
[361950843,1747906243254,-430.0,0.00022739,2]
[361950844,1747906243264,-370.0,0.00022739,2]
[361950845,1747906243273,-430.0,0.00022739,2]
[361950846,1747906243283,-430.0,0.00022739,2]
[361950847,1747906243292,-430.0,0.00022739,2]
[361950848,1747906243301,-337.01576669,0.00022739,2]
[361950849,1747906243310,-430.0,0.00022739,2]
[361950850,1747906243319,-430.0,0.00022739,2]
[361950851,1747906243329,-370.0,0.00022739,2]
[361950852,1747906243338,-430.0,0.00022739,2]
[361950853,1747906243348,-450.0,0.00022739,2]
[361950854,1747906243357,-430.0,0.00022739,2]
[361950855,1747906243366,-430.0,0.00022739,2]
[361950856,1747906243375,-430.0,0.00022739,2]
[361950857,1747906243385,-430.0,0.00022739,2]
[361950858,1747906243395,-430.0,0.00022739,2]
[361950859,1747906243404,-430.0,0.00022739,2]
[361950860,1747906243413,-2758.27,0.00022739,2]
[361950861,1747906243423,-430.0,0.00022739,2]
[361950862,1747906243432,-471.25,0.00022739,2]
[361950863,1747906243441,-453.67,0.00022739,2]
[361950864,1747906243451,-400.0,0.00022739,2]
[361950865,1747906243461,-485.23017228,0.00022739,2]
[361950866,1747906243470,-531.82,0.00022739,2]
[361950867,1747906243479,-430.0,0.00022739,2]
[361950868,1747906243489,-430.0,0.00022739,2]
[361950869,1747906243499,-450.0,0.00022739,2]
[361950870,1747906243508,-430.0,0.00022739,2]
[361950871,1747906243518,-430.0,0.00022739,2]
[361950872,1747906243528,-430.0,0.00022739,2]
[361950874,1747906243542,-430.0,0.00022739,2]
[361950875,1747906243551,-430.0,0.00022739,2]
[361950876,1747906243561,-487.1,0.00022739,2]
[361950878,1747906243570,-430.0,0.00022739,2]
[361950879,1747906243581,-430.0,0.00022739,2]
[361950880,1747906243590,-279.3155292,0.00022739,2]
[361950881,1747906243599,-151.0,0.00022739,7]
[361950882,1747906243610,-430.0,0.00022739,2]
[361950883,1747906243620,-512.14,0.00022739,2]
[361950884,1747906243629,-400.0,0.00022739,2]
[361950885,1747906243638,-430.0,0.00022739,2]
[361950886,1747906243648,-430.0,0.00022739,2]
[361950887,1747906243657,-430.0,0.00022739,2]
[361950888,1747906243667,-430.0,0.00022739,2]
[361950889,1747906243677,-430.0,0.00022739,2]
[361950890,1747906243686,-430.0,0.00022739,2]
[361950891,1747906243696,-430.0,0.00022739,2]
[361950892,1747906243706,-430.0,0.00022739,2]
[361950893,1747906243716,-738.51,0.00022739,2]
[361950894,1747906243726,-630.8,0.00022739,2]
[361950895,1747906243736,-1259.03,0.00022739,2]
[361950896,1747906243745,-430.0,0.00022739,2]
[361950897,1747906243754,-430.0,0.00022739,2]
[361950898,1747906243765,-771.88,0.00022739,2]
[361950899,1747906243774,-430.0,0.00022739,2]
[361950900,1747906243783,-430.0,0.00022739,2]
[361950901,1747906243793,-430.0,0.00022739,2]
[361950902,1747906243802,-2529.3,0.00022739,2]
[361950903,1747906243811,-430.0,0.00022739,2]
[361950904,1747906243821,-430.0,0.00022739,2]
[361950905,1747906243830,-439.34,0.00022739,2]
[361950907,1747906243840,-460.0,0.00022739,2]
[361950908,1747906243849,-430.0,0.00022739,2]
[361950909,1747906243858,-430.0,0.00022739,2]
[361950910,1747906243868,-430.0,0.00022739,2]
[361950911,1747906243878,-430.0,0.00022739,2]
[361950912,1747906243888,-430.0,0.00022739,2]
[361950913,1747906243897,-430.0,0.00022739,2]
[361950914,1747906243907,-430.0,0.00022739,2]
[361950915,1747906243917,-480.92,0.00022739,2]
[361950916,1747906243926,-430.0,0.00022739,2]
[361950917,1747906243935,-430.0,0.00022739,2]
[361950918,1747906243945,-430.0,0.00022739,2]
[361950919,1747906243954,-430.0,0.00022739,2]
[361950920,1747906243963,-430.0,0.00022739,2]
[361950921,1747906243973,-430.0,0.00022739,2]
[361950922,1747906243983,-430.0,0.00022739,2]
[361950923,1747906243993,-914.3,0.00022739,2]
[361950924,1747906244002,-430.0,0.00022739,2]
[361950925,1747906244012,-430.0,0.00022739,2]
[361950926,1747906244022,-430.0,0.00022739,2]
[361950927,1747906244031,-430.0,0.00022739,2]
[361950928,1747906244041,-430.0,0.00022739,2]
[361950929,1747906244050,-430.0,0.00022739,2]
[361950930,1747906244060,-1038.54,0.00022739,2]
[361950931,1747906244069,-430.0,0.00022739,2]
[361950932,1747906244079,-430.0,0.00022739,2]
[361950933,1747906244088,-1675.94,0.00022739,2]
[361950934,1747906244097,-430.0,0.00022739,2]
[361950935,1747906244107,-430.0,0.00022739,2]
[361950936,1747906244116,-430.0,0.00022739,2]
[361950937,1747906244126,-430.0,0.00022739,2]
[361950938,1747906244136,-430.0,0.00022739,2]
[361950939,1747906244146,-430.0,0.00022739,2]
[361950940,1747906244156,-430.0,0.00022739,2]
[361950941,1747906244166,-1204.76,0.00022739,2]
[361950942,1747906244177,-430.0,0.00022739,2]
[361950943,1747906244186,-430.0,0.00022739,2]
[361950944,1747906244196,-430.0,0.00022739,2]
[361950945,1747906244206,-430.0,0.00022739,2]
[361950946,1747906244216,-430.0,0.00022739,2]
[361950947,1747906244226,-430.0,0.00022739,2]
[361950948,1747906244237,-611.79,0.00022739,2]
[361950949,1747906244247,-568.4201111,0.00022739,2]
[361950950,1747906244256,-430.0,0.00022739,2]
[361950951,1747906244266,-381.84231023,0.00022739,2]
[361950952,1747906244275,-430.0,0.00022739,2]
[361950953,1747906244285,-430.0,0.00022739,2]
[361950954,1747906244294,-430.0,0.00022739,2]
[361950955,1747906244304,-430.0,0.00022739,2]
[361950956,1747906244314,-430.0,0.00022739,2]
[361950957,1747906244324,-430.0,0.00022739,2]
[361950958,1747906244334,-430.0,0.00022739,2]
[361950959,1747906244345,-430.0,0.00022739,2]
[361950960,1747906244354,-430.0,0.00022739,2]
[361950961,1747906244364,-537.17,0.00022739,2]
[361950962,1747906244375,-430.0,0.00022739,2]
[361950963,1747906244385,-430.0,0.00022739,2]
[361950964,1747906244394,-430.0,0.00022739,2]
[361950965,1747906244404,-151.0,0.00022739,7]
[361950966,1747906244413,-151.0,0.00022739,7]
[361950967,1747906244423,-198.22467619,0.00022739,2]
[361950968,1747906244433,-430.03,0.00022739,2]
[361950969,1747906244442,-430.0,0.00022739,2]
[361950970,1747906244452,-578.77,0.00022739,2]
[361950971,1747906244461,-806.75,0.00022739,2]
[361950972,1747906244471,-430.0,0.00022739,2]
[361950973,1747906244480,-239.49775045,0.00022739,2]
[361950974,1747906244490,-504.07,0.00022739,2]
[361950975,1747906244499,-430.0,0.00022739,2]
[361950976,1747906244508,-430.0,0.00022739,2]
[361950977,1747906244518,-500.0,0.00022757,2]
[361950978,1747906244532,-782.27437025,0.00022854,2]
[361950979,1747906244541,-404.0,0.00022989,2]
[361950980,1747906244551,-504.33144106,0.00023,30]
[361950981,1747906244561,-500.0,0.00023,30]
[361950982,1747906244571,-500.0,0.00023,30]
[361950983,1747906244581,-500.0,0.00023,30]
[361950984,1747906244591,-500.0,0.00023,30]
[361950985,1747906244601,-1000.0,0.00023,23]
[361950986,1747906244610,-151.0,0.00023013,2]
[361950987,1747906244621,-151.0,0.00023013,2]
[361950988,1747906244630,-1754.494524,0.00023013,7]
[361950989,1747906244639,-1754.494524,0.00023013,7]
[361950990,1747906244648,-430.98,0.00023013,2]
[361950991,1747906244657,-430.0,0.00023013,2]
[361950992,1747906244667,-430.0,0.00023013,2]
[361950993,1747906244676,-430.0,0.00023013,2]
[361950994,1747906244685,-430.0,0.00023013,2]
[361950995,1747906244695,-430.0,0.00023013,2]
[361950996,1747906244705,-196.78,0.00023013,2]
[361950997,1747906244715,-737.37,0.00023013,2]
[361950998,1747906244724,-529.95104839,0.00023013,2]
[361950999,1747906244734,-430.0,0.00023013,2]
[361951000,1747906244743,-321.9,0.00023013,2]
[361951001,1747906244753,-430.0,0.00023013,2]
[361951002,1747906244762,-430.0,0.00023013,2]
[361951003,1747906244773,-430.0,0.00023013,2]
[361951004,1747906244783,-329.45105904,0.00023013,2]
[361951005,1747906244792,-430.0,0.00023013,2]
[361951006,1747906244802,-430.0,0.00023013,2]
[361951007,1747906244811,-430.0,0.00023013,2]
[361951008,1747906244821,-430.0,0.00023013,2]
[361951009,1747906244831,-430.0,0.00023013,2]
[361951010,1747906244840,-430.0,0.00023013,2]
[361951011,1747906244850,-430.0,0.00023013,2]
[361951012,1747906244860,-453.08038537,0.00023013,2]
[361951013,1747906244869,-430.0,0.00023013,2]
[361951014,1747906244879,-430.0,0.00023013,2]
[361951015,1747906244889,-430.0,0.00023013,2]
[361951016,1747906244898,-430.0,0.00023013,2]
[361951017,1747906244907,-430.0,0.00023013,2]
[361951018,1747906244917,-430.0,0.00023013,2]
[361951019,1747906244927,-420.0,0.00023013,2]
[361951020,1747906244937,-470.0,0.00023013,2]
[361951021,1747906244946,-430.0,0.00023013,2]
[361951022,1747906244956,-430.0,0.00023013,2]
[361951023,1747906244965,-430.0,0.00023013,2]
[361951024,1747906244975,-441.59,0.00023013,2]
[361951025,1747906244984,-211.13860888,0.00023013,2]
[361951026,1747906244993,-430.0,0.00023013,2]
[361951027,1747906245002,-430.0,0.00023013,2]
[361951028,1747906245012,-430.0,0.00023013,2]
[361951029,1747906245022,-430.0,0.00023013,2]
[361951030,1747906245031,-430.0,0.00023013,2]
[361951031,1747906245041,-430.0,0.00023013,2]
[361951032,1747906245050,-430.0,0.00023013,2]
[361951033,1747906245059,-430.0,0.00023013,2]
[361951034,1747906245069,-430.0,0.00023013,2]
[361951035,1747906245078,-300.0,0.00023013,2]
[361951036,1747906245087,-2758.27,0.00023013,2]
[361951037,1747906245096,-430.0,0.00023013,2]
[361951038,1747906245106,-471.25,0.00023013,2]
[361951039,1747906245115,-453.67,0.00023013,2]
[361951040,1747906245125,-531.82,0.00023013,2]
[361951041,1747906245134,-450.0,0.00023013,2]
[361951042,1747906245144,-430.0,0.00023013,2]
[361951043,1747906245154,-484.66,0.00023013,2]
[361951044,1747906245164,-430.0,0.00023013,2]
[361951045,1747906245173,-430.0,0.00023013,2]
[361951046,1747906245183,-430.0,0.00023013,2]
[361951047,1747906245193,-430.0,0.00023013,2]
[361951048,1747906245202,-430.0,0.00023013,2]
[361951049,1747906245212,-430.0,0.00023013,2]
[361951050,1747906245221,-151.0,0.00023013,7]
[361951051,1747906245233,-430.0,0.00023013,2]
[361951052,1747906245243,-151.0,0.00023013,7]
[361951053,1747906245252,-738.51,0.00023013,2]
[361951054,1747906245262,-630.8,0.00023013,2]
[361951055,1747906245272,-1259.03,0.00023013,2]
[361951056,1747906245282,-430.0,0.00023013,2]
[361951057,1747906245292,-430.0,0.00023013,2]
[361951059,1747906245302,-771.88,0.00023013,2]
[361951060,1747906245311,-430.0,0.00023013,2]
[361951061,1747906245321,-261.83,0.00023013,2]
[361951062,1747906245330,-2529.3,0.00023013,2]
[361951063,1747906245340,-501.03,0.00023013,2]
[361951064,1747906245350,-430.0,0.00023013,2]
[361951066,1747906245360,-439.34,0.00023013,2]
[361951067,1747906245370,-430.0,0.00023013,2]
[361951068,1747906245380,-430.0,0.00023013,2]
[361951069,1747906245390,-160.29,0.00023013,2]
[361951070,1747906245400,-430.0,0.00023013,2]
[361951071,1747906245409,-430.0,0.00023013,2]
[361951072,1747906245419,-480.92,0.00023013,2]
[361951073,1747906245428,-430.0,0.00023013,2]
[361951074,1747906245438,-151.0,0.00023013,7]
[361951075,1747906245448,-430.0,0.00023013,2]
[361951076,1747906245457,-559.61805242,0.00023013,2]
[361951077,1747906245466,-508.79,0.00023013,2]
[361951080,1747906245613,-430.0,0.00023013,2]
[361951081,1747906245624,-914.3,0.00023013,2]
[361951082,1747906245634,-430.0,0.00023013,2]
[361951083,1747906245644,-526.93,0.00023013,2]
[361951084,1747906245654,-359.20610737,0.00023013,2]
[361951088,1747906245873,-0.01918045,0.00021917,2]
[361951091,1747906245890,-487.34081955,0.00021917,2]
[361951093,1747906245900,-404.52694945,0.00021917,2]
[361951095,1747906245911,-25.47305055,0.00021917,2]
[361951097,1747906245921,-400.0,0.00021917,2]
[361951099,1747906245931,-430.0,0.00021917,2]
[361951101,1747906245940,-487.36,0.00022191,2]
[361951103,1747906245950,-33.45732558,0.00022191,2]
[361951131,1747906246206,-500.0,0.00021916,2]
[361951133,1747906246216,-6.32343897,0.00021916,2]
[361951140,1747906246274,-1872.45072647,0.00021698,2]
[361951142,1747906246283,-493.67656103,0.00021916,2]
[361951143,1747906246293,-220.7152165,0.00021916,2]
[361951144,1747906246303,-500.0,0.00021916,2]
[361951145,1747906246312,-430.0,0.00021917,2]
[361951146,1747906246322,-430.0,0.00021917,2]
[361951147,1747906246331,-430.0,0.00021917,2]
[361951148,1747906246341,-400.0,0.00021917,2]
[361951149,1747906246350,-337.439678,0.00022191,2]
[361951150,1747906246360,-430.0,0.00022191,2]
[361951151,1747906246370,-430.0,0.00022191,2]
[361951152,1747906246379,-430.0,0.00022191,2]
[361951154,1747906246388,-422.78357425,0.00022353,2]
[361951156,1747906246398,-13109.53078888,0.00022465,2]
[361951168,1747906753227,5000.0,0.0002,2]
[361951169,1747906827416,297.09174996,0.0001982,2]
[361951171,1747906932271,661.3486338,0.00019931,2]
[361951172,1747906940399,8882.5727911,0.00019926,2]
[361951173,1747906947794,4505.727561,0.000198,2]
[361951174,1747906961481,5000.0,0.0002,2]
[361951175,1747906968327,223.4218027,0.0001998,2]
[361951176,1747906977554,3449.12339783,0.0002,2]
[361951177,1747906994301,5000.0,0.0002,2]
[361951178,1747907001783,-756.1637342,0.00020238,2]
[361951179,1747907001810,-1198.2785411,0.00020366,2]
[361951180,1747907001834,-652.62849779,0.00020639,2]
[361951181,1747907001857,-300.0,0.00021364,2]
[361951182,1747907001881,-487.58305725,0.00021365,2]
[361951183,1747907001906,-500.0,0.00021365,2]
[361951184,1747907001929,-180.65575596,0.00021365,2]
[361951185,1747907001956,-500.0,0.00021365,2]
[361951186,1747907001980,-500.0,0.00021365,2]
[361951187,1747907002006,-500.0,0.00021365,2]
[361951188,1747907002032,-500.0,0.00021365,2]
[361951189,1747907002055,-500.0,0.00021365,2]
[361951190,1747907002079,-176.5955746,0.00021365,2]
[361951191,1747907002104,-500.0,0.00021365,2]
[361951192,1747907002131,-500.0,0.00021365,2]
[361951193,1747907002159,-500.0,0.00021365,2]
[361951194,1747907002183,-500.0,0.00021365,2]
[361951195,1747907002210,-500.0,0.00021365,2]
[361951196,1747907002237,-500.0,0.00021365,2]
[361951197,1747907002263,-500.0,0.00021365,2]